[Event "Sparkassen Open 2018"]
[Site "Heusenstamm"]
[Date "2018.11.25"]
[Round "6"]
[White "Hahn, Florian"]
[Black "Krastev, Alexander"]
[Result "1-0"]
[ECO "A37"]
[WhiteElo "2148"]
[BlackElo "2342"]
[Annotator "NA"]
[PlyCount "59"]
[EventDate "2018.11.22"]
[EventType "swiss"]
[EventCountry "GER"]
[SourceTitle "playchess.com"]
[Source "ChessBase"]
[SourceQuality "1"]
[TimeControl "40/5400+30:1800+30"]

1. Nf3 {[%emt 0:00:00]} c5 {[%emt 0:00:00]} 2. c4 {[%emt 0:00:01]} g6 {[%emt 0:00:00]} 3. g3 {[%emt 0:00:33]} Bg7 {[%emt 0:00:00]} 4. Bg2 {[%emt 0:00:21]} Nc6 {[%emt 0:00:02]} 5. Nc3 {[%emt 0:01:54]} d6 {[%emt 0:00:46]} 6. O-O {[%emt 0:00:19]} Nh6 {[%emt 0:00:09]} 7. d4 {[%emt 0:01:54]} cxd4 {[%emt 0:00:09] A37: Symmetrical English vs ...g6: 4 Bg2 Bg7 5 Nf3} (7... O-O 8. d5 Na5 9. Nd2 a6 10. Qc2 b5 11. cxb5 axb5 12. Nxb5 Ba6 13. Nc3 Nf5 14. Re1 Nd4 15. Qd1 {½-½ (26) Rakhmanov,A (2665)-Van Wely,L (2669) Zuerich 2017}) 8. Bxh6 {[%emt 0:01:27]} Bxh6 {[%emt 0:00:06]} 9. Nxd4 {[%emt 0:00:58]} Bd7 {[%emt 0:00:14]} 10. c5 {[%emt 0:02:37]} dxc5 {[%emt 0:07:02]} 11. Nxc6 {[%emt 0:00:41]} Bxc6 {[%emt 0:00:10]} 12. Bxc6+ {[%emt 0:00:18] LiveBook: 12 Games} bxc6 {[%emt 0:00:03]} 13. Qa4 {[%emt 0:00:48]} O-O {[%emt 0:02:01]} 14. Qxc6 {[%emt 0:09:18]} Qb6 $146 {[%emt 0:28:42]} ({Predecessor:} 14... Rc8 15. Qa4 {½-½ (51) Bonagura,S (2183)-Bruno,F (2408) Arco 2013}) 15. Nd5 {[%emt 0:12:07]} Qxb2 {[%emt 0:02:54]} 16. Nxe7+ {[%emt 0:05:16]} Kh8 {[%emt 0:00:36]} 17. Qxc5 {[%emt 0:10:17]} Bg7 {[%emt 0:06:17]} 18. e3 {[%emt 0:05:48]} Qxa1 {[%emt 0:13:17]} 19. Rxa1 {[%emt 0:00:16]} Bxa1 {[%emt 0:00:03]} 20. h4 {[%emt 0:04:02]} Rfd8 {[%emt 0:08:12]} 21. h5 {[%emt 0:05:02]} Bf6 {[%emt 0:06:33]} (21... Kg7 $16 {might work better.} 22. Qc4 Re8) 22. hxg6 {[%emt 0:07:02]} hxg6 {[%emt 0:01:31]} 23. Nd5 {[%emt 0:02:07]} Bg7 {[%emt 0:04:54]} 24. Qc4 {[%emt 0:07:00]} Rd7 $2 {[%emt 0:01:36] [#]} (24... Be5 $16) 25. Ne7 $18 {[%emt 0:07:08]} Rxe7 {[%emt 0:06:20]} 26. Qh4+ {[%emt 0:00:17]} Kg8 {[%emt 0:00:02]} 27. Qxe7 {[%emt 0:00:08]} a5 {[%emt 0:00:36]} 28. Qb7 {[%emt 0:06:13]} Rd8 {[%emt 0:01:26]} 29. Kg2 {[%emt 0:02:50]} a4 {[%emt 0:02:14]} 30. Qa7 {[%emt 0:00:49]} 1-0

[Event "Sparkassen Open 2018"]
[Site "Heusenstamm"]
[Date "2018.11.25"]
[Round "6"]
[White "Farmani Anosheh, Yasha"]
[Black "Khaetsky, Roman"]
[Result "1-0"]
[ECO "C46"]
[WhiteElo "2127"]
[BlackElo "2347"]
[Annotator "NA"]
[PlyCount "93"]
[EventDate "2018.11.22"]
[EventType "swiss"]
[EventCountry "GER"]
[SourceTitle "playchess.com"]
[Source "ChessBase"]
[SourceQuality "1"]
[TimeControl "40/5400+30:1800+30"]

1. e4 {[%emt 0:00:00]} e5 {[%emt 0:01:44]} 2. Nf3 {[%emt 0:00:00]} Nc6 {[%emt 0:00:04]} 3. Nc3 {[%emt 0:00:00]} g6 {[%emt 0:00:28]} 4. d4 {[%emt 0:18:12]} exd4 {[%emt 0:00:12]} 5. Nxd4 {[%emt 0:00:02]} Bg7 {[%emt 0:00:05]} 6. Be3 {[%emt 0:00:08]} Nge7 {[%emt 0:00:16]} 7. Qd2 {[%emt 0:01:08]} O-O {[%emt 0:00:34]} 8. O-O-O {[%emt 0:02:18]} d6 {[%emt 0:04:02] C46: 3 Nc3: Unusual Black 3rd moves} 9. h4 {[%emt 0:05:34]} h5 {[%emt 0:04:41]} 10. f3 {[%emt 0:04:25]} Ne5 {[%emt 0:00:44]} 11. Bh6 {[%emt 0:01:25] LiveBook: 5 Games} a6 {[%emt 0:02:49]} (11... b5 12. Bxg7 Kxg7 13. Bxb5 Rb8 14. g4 hxg4 15. h5 Rh8 16. f4 {1-0 (36) Kobalia,M (2651)-Mamedyarov,S (2753) Khanty-Mansiysk 2013}) 12. Be2 {[%emt 0:09:00]} b5 {[%emt 0:23:40]} 13. Bxg7 $146 {[%emt 0:15:55]} ({Predecessor:} 13. g4 c5 14. Nf5 gxf5 15. gxf5 Nxf5 16. exf5 Bxf5 {1-0 (30) Ni,H (2528)-Wu,W (2570) Hebei 2001}) 13... Kxg7 {[%emt 0:00:42]} 14. f4 {[%emt 0:00:05]} Ng4 {[%emt 0:03:04]} 15. f5 {[%emt 0:05:08]} Nf6 {[%emt 0:08:24]} 16. fxg6 {[%emt 0:10:04]} fxg6 {[%emt 0:01:03]} 17. Bf3 $18 {[%emt 0:06:11]} Bd7 {[%emt 0:15:33]} 18. Qg5 {[%emt 0:00:49]} b4 {[%emt 0:03:29]} 19. Nce2 {[%emt 0:01:27]} c5 {[%emt 0:08:04]} 20. Nf5+ {[%emt 0:00:05]} Nxf5 {[%emt 0:02:55]} 21. exf5 {[%emt 0:00:13]} Bxf5 {[%emt 0:00:05]} 22. Bxa8 {[%emt 0:00:48]} Qxa8 {[%emt 0:00:16]} 23. Ng3 {[%emt 0:05:36]} Ne4 {[%emt 0:06:15]} 24. Nxe4 {[%emt 0:08:26]} Qxe4 {[%emt 0:00:18]} 25. Qd2 {[%emt 0:00:01]} a5 {[%emt 0:05:12]} 26. Rde1 {[%emt 0:00:02]} Qc4 {[%emt 0:00:54]} 27. b3 {[%emt 0:03:10]} Qc3 {[%emt 0:03:03]} 28. Qxc3+ {[%emt 0:00:51]} bxc3 {[%emt 0:00:04]} 29. Re3 {[%emt 0:00:38]} Bg4 {[%emt 0:02:33]} 30. Rxc3 {[%emt 0:00:23]} Rf2 {[%emt 0:00:04]} 31. g3 {[%emt 0:00:09]} Kf6 {[%emt 0:00:49]} 32. Re1 {[%emt 0:00:21]} Bf5 {[%emt 0:02:13]} 33. Rd1 {[%emt 0:00:38]} Ke6 {[%emt 0:00:40]} 34. Re3+ {[%emt 0:00:37]} Kd7 {[%emt 0:00:04]} 35. Rd2 {[%emt 0:00:06]} Rf1+ {[%emt 0:00:04]} 36. Kb2 {[%emt 0:00:01]} Kc6 {[%emt 0:00:20]} 37. c4 {[%emt 0:01:48]} a4 {[%emt 0:00:49]} 38. bxa4 {[%emt 0:00:20]} Rb1+ {[%emt 0:00:13]} 39. Ka3 {[%emt 0:02:45]} Rc1 {[%emt 0:00:26]} 40. a5 {[%emt 0:00:29]} Rxc4 {[%emt 0:00:18]} 41. Rb3 {[%emt 0:01:34]} Kc7 {[%emt 0:02:18]} 42. a6 {[%emt 0:01:40]} Be4 {[%emt 0:00:09]} 43. a7 {[%emt 0:01:24]} Bc6 {[%emt 0:00:15]} 44. Kb2 {[%emt 0:00:33]} d5 {[%emt 0:01:25]} 45. Rc2 {[%emt 0:03:19]} Ra4 {[%emt 0:01:07]} 46. Rxc5 {[%emt 0:00:09]} Kd6 {[%emt 0:01:12]} 47. Rxc6+ {[%emt 0:00:53]} 1-0

[Event "Sparkassen Open 2018"]
[Site "Heusenstamm"]
[Date "2018.11.25"]
[Round "7"]
[White "Milov, Leonid"]
[Black "Haag, Martin"]
[Result "1-0"]
[ECO "B07"]
[WhiteElo "2481"]
[BlackElo "2186"]
[Annotator "RC"]
[PlyCount "127"]
[EventDate "2018.11.22"]
[EventType "swiss"]
[EventCountry "GER"]
[SourceTitle "playchess.com"]
[Source "ChessBase"]
[SourceQuality "1"]
[TimeControl "40/5400+30:1800+30"]

1. e4 {[%emt 0:00:00]} d6 {[%emt 0:00:00]} 2. d4 {[%emt 0:00:00]} Nf6 {[%emt 0:00:00]} 3. Nc3 {[%emt 0:00:00]} e5 {[%emt 0:00:00]} 4. dxe5 {[%emt 0:01:27]} dxe5 {[%emt 0:00:00]} 5. Qxd8+ {[%emt 0:00:02]} Kxd8 {[%emt 0:00:07]} 6. Bg5 {[%emt 0:00:12]} Be6 {[%emt 0:00:15]} 7. O-O-O+ {[%emt 0:01:09]} Nbd7 {[%emt 0:00:37]} 8. f4 {[%emt 0:00:33]} exf4 {[%emt 0:02:04]} 9. Nf3 {[%emt 0:00:19]} h6 {[%emt 0:20:41]} 10. Bxf4 {[%emt 0:00:18]} Ng4 {[%emt 0:07:18]} 11. Nb5 {[%emt 0:31:49]} Nf2 {[%emt 0:06:05]} 12. Nxc7 {[%emt 0:19:46]} Nxd1 {[%emt 0:03:28]} 13. Bb5 {[%emt 0:11:27]} Nf2 {[%emt 0:05:12]} 14. Rf1 {[%emt 0:00:24]} Bc5 {[%emt 0:16:09]} 15. Nxa8 {[%emt 0:05:53]} g5 {[%emt 0:05:02]} 16. Bg3 {[%emt 0:02:16]} Nxe4 {[%emt 0:01:35]} 17. Nc7 {[%emt 0:00:36]} Nxg3 {[%emt 0:03:04]} 18. Nxe6+ {[%emt 0:00:15]} fxe6 {[%emt 0:00:09]} 19. hxg3 {[%emt 0:00:11]} Nb6 {[%emt 0:05:10]} 20. Ne5 {[%emt 0:13:59]} Rf8 {[%emt 0:03:43]} 21. Rd1+ {[%emt 0:00:39]} Kc7 {[%emt 0:01:19]} 22. Be2 {[%emt 0:00:31]} Bd6 {[%emt 0:03:29]} 23. Nd3 {[%emt 0:00:10]} Nd5 {[%emt 0:01:25]} 24. Rh1 {[%emt 0:05:35]} Rf6 {[%emt 0:00:53]} 25. Rh3 {[%emt 0:01:08]} Nb4 {[%emt 0:10:11]} 26. Kd2 {[%emt 0:01:56]} Nxd3 {[%emt 0:00:11]} 27. Kxd3 {[%emt 0:00:08]} a5 {[%emt 0:01:05]} 28. g4 {[%emt 0:00:52]} Bf8 {[%emt 0:00:50]} 29. Bf3 {[%emt 0:00:22]} Rf4 {[%emt 0:01:28]} 30. c3 {[%emt 0:01:17]} b5 {[%emt 0:00:47]} 31. Rh1 {[%emt 0:00:13]} Bg7 {[%emt 0:00:17]} 32. Re1 {[%emt 0:00:25]} Kd6 {[%emt 0:00:49]} 33. Rd1 {[%emt 0:00:38]} Kc7 {[%emt 0:01:03]} 34. a3 {[%emt 0:00:57]} Rf8 {[%emt 0:00:50]} 35. Re1 {[%emt 0:00:28]} Kd6 {[%emt 0:00:27]} 36. Kc2 {[%emt 0:00:16]} Rf4 {[%emt 0:00:54]} 37. Rd1+ {[%emt 0:00:52]} Kc7 {[%emt 0:00:09]} 38. Rd3 {[%emt 0:01:00]} Rf8 {[%emt 0:00:34]} 39. Re3 {[%emt 0:00:20]} Kd6 {[%emt 0:00:11]} 40. Kb3 {[%emt 0:00:24]} Rb8 {[%emt 0:00:15]} 41. Re4 {[%emt 0:30:44]} Bf6 {[%emt 0:01:46]} 42. Kc2 {[%emt 0:00:00]} Rc8 {[%emt 0:11:50]} 43. Kd3 {[%emt 0:00:00]} Rb8 {[%emt 0:01:39]} 44. Kc2 {[%emt 0:00:00]} Rb6 {[%emt 0:02:09]} 45. Be2 {[%emt 0:00:00]} Rb7 {[%emt 0:02:37]} 46. Kb3 {[%emt 0:00:00]} Rb8 {[%emt 0:00:10]} 47. Re3 {[%emt 0:00:00]} Rb6 {[%emt 0:00:26]} 48. Bd3 {[%emt 0:00:00]} Rb8 {[%emt 0:01:15]} 49. Bb1 {[%emt 0:00:00]} b4 {[%emt 0:03:54]} 50. cxb4 {[%emt 0:00:00]} axb4 {[%emt 0:00:07]} 51. a4 {[%emt 0:00:00]} Bd4 {[%emt 0:03:44]} 52. Rf3 {[%emt 0:00:00]} Kd5 {[%emt 0:00:39]} 53. Rf7 {[%emt 0:00:00]} e5 {[%emt 0:01:19]} 54. Rd7+ {[%emt 0:00:00]} Kc6 {[%emt 0:03:24]} 55. Rh7 {[%emt 0:00:00]} Kd5 {[%emt 0:00:31]} 56. Rd7+ {[%emt 0:00:00]} Kc5 {[%emt 0:01:14]} 57. Be4 {[%emt 0:00:00]} Rf8 {[%emt 0:00:27]} 58. Rd5+ {[%emt 0:00:00]} Kb6 {[%emt 0:00:11]} 59. Rb5+ {[%emt 0:00:00]} Ka6 {[%emt 0:00:46]} 60. Bf5 {[%emt 0:00:00]} h5 {[%emt 0:00:56]} 61. Bd3 {[%emt 0:04:34]} Ka7 {[%emt 0:00:08]} 62. gxh5 {[%emt 0:00:22]} g4 {[%emt 0:00:21]} 63. h6 {[%emt 0:00:50]} e4 {[%emt 0:03:32]} 64. Rxb4 {[%emt 0:03:13]} 1-0

[Event "Sparkassen Open 2018"]
[Site "Heusenstamm"]
[Date "2018.11.25"]
[Round "7"]
[White "Geske, Julian"]
[Black "Chandler, Patrick"]
[Result "1/2-1/2"]
[ECO "C41"]
[WhiteElo "2382"]
[BlackElo "2138"]
[Annotator "NA"]
[PlyCount "129"]
[EventDate "2018.11.22"]
[EventType "swiss"]
[EventCountry "GER"]
[SourceTitle "playchess.com"]
[Source "ChessBase"]
[SourceQuality "1"]
[TimeControl "40/5400+30:1800+30"]

1. e4 {[%emt 0:00:00]} e5 {[%emt 0:00:39]} 2. Nf3 {[%emt 0:00:00]} d6 {[%emt 0:00:29]} 3. d4 {[%emt 0:02:24]} Nc6 {[%emt 0:02:40]} 4. Bb5 {[%emt 0:01:15]} f6 {[%emt 0:00:53] C62: Ruy Lopez: Steinitz Defence} (4... Bd7 5. Nc3 exd4 6. Nxd4 Nf6 7. O-O Be7 8. Bf4 O-O 9. Re1 Nxd4 10. Qxd4 Bxb5 11. Nxb5 Nd7 12. Qc4 a6 13. Nc3 Bf6 14. Nd5 Rc8 15. Qb4 b6 16. Rad1 Re8 17. b3 Be5 18. Be3 a5 19. Qd2 Nf6 20. Bg5 {½-½ (59) Navara,D (2740)-Andriasian,Z (2585) Katowice 2017}) 5. O-O {[%emt 0:01:42]} Bd7 {[%emt 0:01:03]} 6. c3 {[%emt 0:06:45]} Nge7 {[%emt 0:01:37]} 7. Nh4 {[%emt 0:04:19]} g6 {[%emt 0:01:14]} 8. a4 $146 {[%emt 0:05:49]} ({Predecessor:} 8. f4 Bg7 9. f5 Na5 10. Bd3 c5 11. d5 b5 12. Be3 Qc7 13. Qd2 O-O-O 14. b4 {1-0 (34) Kovac,M (2096)-Gabor,A (2030) Hungary 2004}) 8... Bg7 {[%emt 0:01:52]} 9. Bc4 {[%emt 0:00:29]} Qc8 {[%emt 0:01:15]} 10. f4 {[%emt 0:05:05]} exf4 {[%emt 0:01:12]} 11. Bxf4 {[%emt 0:03:05]} Nd8 {[%emt 0:00:31]} 12. Nd2 {[%emt 0:11:32]} Be6 {[%emt 0:02:59]} 13. Bxe6 {[%emt 0:01:02]} Qxe6 {[%emt 0:00:26]} 14. Qc2 {[%emt 0:02:09]} O-O {[%emt 0:03:39]} 15. Bg3 {[%emt 0:02:39]} Nf7 {[%emt 0:01:51]} 16. Rae1 {[%emt 0:03:55]} Rae8 {[%emt 0:00:21]} 17. Qd3 {[%emt 0:02:31]} Qd7 {[%emt 0:01:40]} 18. Qb5 {[%emt 0:02:13]} c6 {[%emt 0:00:19]} 19. Qb3 {[%emt 0:03:10]} d5 {[%emt 0:01:54]} 20. Nhf3 {[%emt 0:02:34]} Kh8 {[%emt 0:02:51]} 21. exd5 {[%emt 0:05:51]} cxd5 {[%emt 0:00:07]} 22. Bf4 {[%emt 0:04:59]} g5 {[%emt 0:01:27]} 23. Bg3 {[%emt 0:00:37]} Ng6 {[%emt 0:01:40]} 24. Rxe8 {[%emt 0:01:20]} Rxe8 {[%emt 0:01:00]} 25. Qd1 {[%emt 0:04:33]} f5 {[%emt 0:00:46]} 26. Re1 {[%emt 0:04:54]} f4 {[%emt 0:03:13]} 27. Bf2 {[%emt 0:00:14]} Bf6 {[%emt 0:04:06]} 28. Rxe8+ {[%emt 0:03:55]} Qxe8 {[%emt 0:00:18]} 29. c4 {[%emt 0:00:40]} g4 {[%emt 0:01:00]} 30. Ne1 {[%emt 0:02:28]} h5 {[%emt 0:00:36]} 31. cxd5 {[%emt 0:00:47]} Kg7 {[%emt 0:01:07]} 32. Nb1 {[%emt 0:06:07]} Qd7 {[%emt 0:01:37]} 33. Nc3 {[%emt 0:00:54]} h4 {[%emt 0:00:38]} 34. Nc2 {[%emt 0:00:41]} Qf5 {[%emt 0:01:13]} 35. Qe2 {[%emt 0:02:37]} Ng5 {[%emt 0:01:51]} 36. Be1 {[%emt 0:01:58]} g3 {[%emt 0:01:02]} 37. Kh1 {[%emt 0:00:57]} f3 {[%emt 0:04:31]} 38. Ne3 {[%emt 0:01:03]} Qf4 {[%emt 0:02:11]} 39. gxf3 {[%emt 0:00:06]} Bxd4 {[%emt 0:01:40]} 40. Ng2 {[%emt 0:01:12]} Qxf3 {[%emt 0:00:36]} 41. d6 {[%emt 0:11:44]} h3 {[%emt 0:02:20]} (41... Qf5 $19 42. Nxh4 {[%mdl 64] Remove Defender} Nxh4 43. Bxg3 Ng6) 42. Qxf3 {[%emt 0:00:52]} Nxf3 {[%emt 0:00:57]} 43. Bxg3 {[%emt 0:00:09]} hxg2+ {[%emt 0:01:00]} 44. Kxg2 {[%emt 0:00:01]} Nfe5 {[%emt 0:00:23]} 45. Nb5 {[%emt 0:00:52]} Bc5 {[%emt 0:00:50]} 46. b4 {[%emt 0:02:12]} Bxb4 {[%emt 0:00:58]} 47. Nxa7 {[%emt 0:00:12]} Bxd6 {[%emt 0:00:38]} 48. Nb5 {[%emt 0:00:16]} Bb4 {[%emt 0:00:55]} 49. Kf2 {[%emt 0:00:28]} Bc5+ {[%emt 0:01:14]} 50. Ke2 {[%emt 0:00:11]} Kh6 {[%emt 0:01:02]} 51. Kd2 {[%emt 0:00:33]} Kg5 {[%emt 0:00:31]} 52. Kc3 {[%emt 0:00:35]} Kg4 {[%emt 0:00:57]} 53. Nc7 {[%emt 0:01:10]} Bb6 {[%emt 0:02:46]} 54. Nd5 {[%emt 0:00:13]} Bc5 {[%emt 0:02:54]} (54... Bd8 $17 55. Ne3+ Kf3) 55. Nc7 {[%emt 0:00:05]} Bb6 {[%emt 0:04:50]} 56. Nd5 {[%emt 0:00:20]} Ba5+ {[%emt 0:00:15]} 57. Kd4 {[%emt 0:00:08]} Nd7 {[%emt 0:02:17]} 58. Bc7 {[%emt 0:01:01]} Be1 {[%emt 0:01:43]} 59. Kc4 {[%emt 0:00:41]} Kf5 {[%emt 0:01:59]} 60. a5 {[%emt 0:01:21]} Ke4 {[%emt 0:01:23]} 61. Nb4 {[%emt 0:01:52]} Ne7 {[%emt 0:03:37]} 62. a6 {[%emt 0:02:44]} Bxb4 {[%emt 0:01:49]} 63. axb7 {[%emt 0:01:16]} Nd5 {[%emt 0:03:15]} 64. b8=Q {[%emt 0:01:24]} Nxb8 $11 {[%emt 0:00:08]} 65. Bxb8 {[%emt 0:00:09]} 1/2-1/2

[Event "Sparkassen Open 2018"]
[Site "Heusenstamm"]
[Date "2018.11.25"]
[Round "7"]
[White "Kersten, Uwe"]
[Black "Gutman, Lev"]
[Result "0-1"]
[ECO "A45"]
[WhiteElo "2233"]
[BlackElo "2434"]
[Annotator "RC"]
[PlyCount "68"]
[EventDate "2018.11.22"]
[EventType "swiss"]
[EventCountry "GER"]
[SourceTitle "playchess.com"]
[Source "ChessBase"]
[SourceQuality "1"]
[TimeControl "40/5400+30:1800+30"]

1. d4 {[%emt 0:07:59]} Nf6 {[%emt 0:00:00]} 2. Bg5 {[%emt 0:00:44]} Ne4 {[%emt 0:00:02]} 3. Bf4 {[%emt 0:00:15]} d5 {[%emt 0:00:08]} 4. e3 {[%emt 0:00:15]} g6 {[%emt 0:00:10]} 5. Bd3 {[%emt 0:05:39]} Nd6 {[%emt 0:03:46]} 6. Nc3 {[%emt 0:05:01]} c6 {[%emt 0:00:30]} 7. e4 {[%emt 0:03:01]} dxe4 {[%emt 0:00:31]} 8. Nxe4 {[%emt 0:00:35]} Nxe4 {[%emt 0:00:31]} 9. Bxe4 {[%emt 0:00:06]} Nd7 {[%emt 0:04:18]} 10. Qd2 {[%emt 0:10:28]} Nf6 {[%emt 0:02:27]} 11. Bf3 {[%emt 0:01:11]} Nd5 {[%emt 0:04:39]} 12. Be5 {[%emt 0:02:56]} f6 {[%emt 0:00:36]} 13. Bg3 {[%emt 0:00:09]} h5 {[%emt 0:00:41]} 14. Be4 {[%emt 0:18:39]} Kf7 {[%emt 0:06:32]} 15. h4 {[%emt 0:08:39]} Bh6 {[%emt 0:05:18]} 16. f4 {[%emt 0:00:19]} Bg4 {[%emt 0:07:13]} 17. c4 {[%emt 0:06:11]} Nb6 {[%emt 0:04:36]} 18. Qd3 {[%emt 0:04:41]} f5 {[%emt 0:04:10]} 19. Bf3 {[%emt 0:00:22]} Qd6 {[%emt 0:00:07]} 20. Bxg4 {[%emt 0:04:54]} hxg4 {[%emt 0:02:08]} 21. Kd1 {[%emt 0:04:47]} Nd7 {[%emt 0:03:03]} 22. Kc2 {[%emt 0:01:36]} Nf6 {[%emt 0:00:07]} 23. Re1 {[%emt 0:02:58]} Rad8 {[%emt 0:01:45]} 24. Ne2 {[%emt 0:03:46]} Ne4 {[%emt 0:02:47]} 25. Rhf1 {[%emt 0:00:26]} Bg7 {[%emt 0:03:09]} 26. Rd1 {[%emt 0:00:04]} c5 {[%emt 0:07:13]} 27. d5 {[%emt 0:02:10]} Qb6 {[%emt 0:19:48]} 28. b3 {[%emt 0:00:54]} Qf6 {[%emt 0:01:53]} 29. Rb1 {[%emt 0:00:12]} Qa6 {[%emt 0:02:55]} 30. a4 {[%emt 0:00:44]} e6 {[%emt 0:00:02]} 31. Rfd1 {[%emt 0:02:16]} exd5 {[%emt 0:00:01]} 32. cxd5 {[%emt 0:00:27]} c4 {[%emt 0:05:24]} 33. bxc4 {[%emt 0:02:28]} Rc8 {[%emt 0:01:36]} 34. Rb5 {[%emt 0:01:23]} Qxa4+ {[%emt 0:00:20]} 0-1

[Event "Sparkassen Open 2018"]
[Site "Heusenstamm"]
[Date "2018.11.25"]
[Round "7"]
[White "Jansen, Dirk Norbert"]
[Black "Fruebing, Stefan"]
[Result "1/2-1/2"]
[ECO "B38"]
[WhiteElo "2209"]
[BlackElo "2406"]
[Annotator "NA"]
[PlyCount "31"]
[EventDate "2018.11.22"]
[EventType "swiss"]
[EventCountry "GER"]
[SourceTitle "playchess.com"]
[Source "ChessBase"]
[SourceQuality "1"]
[TimeControl "40/5400+30:1800+30"]

1. e4 {[%emt 0:00:00]} c5 {[%emt 0:00:00]} 2. Nf3 {[%emt 0:00:00]} Nc6 {[%emt 0:00:00]} 3. d4 {[%emt 0:00:00]} cxd4 {[%emt 0:00:00]} 4. Nxd4 {[%emt 0:00:00]} g6 {[%emt 0:00:01]} 5. c4 {[%emt 0:00:00]} Bg7 {[%emt 0:00:11]} 6. Be3 {[%emt 0:00:00]} Nf6 {[%emt 0:00:23]} 7. Nc3 {[%emt 0:00:00]} d6 {[%emt 0:00:09]} 8. Be2 {[%emt 0:00:18]} O-O {[%emt 0:00:12]} 9. Qd2 {[%emt 0:00:17]} Nxd4 {[%emt 0:04:13]} 10. Bxd4 {[%emt 0:00:04]} a5 {[%emt 0:00:21]} 11. Rd1 {[%emt 0:02:05]} a4 {[%emt 0:05:01]} 12. O-O {[%emt 0:02:11]} Be6 {[%emt 0:09:56]} 13. f4 {[%emt 0:00:23]} Qa5 {[%emt 0:00:48]} 14. b3 {[%emt 0:01:56]} axb3 {[%emt 0:07:31]} 15. axb3 {[%emt 0:01:54]} Rfc8 {[%emt 0:00:04]} 16. Bd3 1/2-1/2

[Event "Sparkassen Open 2018"]
[Site "Heusenstamm"]
[Date "2018.11.25"]
[Round "7"]
[White "Henrich, Thomas"]
[Black "Baskin, Robert"]
[Result "0-1"]
[ECO "B18"]
[WhiteElo "2207"]
[BlackElo "2354"]
[Annotator "NA"]
[PlyCount "36"]
[EventDate "2018.11.22"]
[EventType "swiss"]
[EventCountry "GER"]
[SourceTitle "playchess.com"]
[Source "ChessBase"]
[SourceQuality "1"]
[TimeControl "40/5400+30:1800+30"]

1. e4 {[%emt 0:00:00]} c6 {[%emt 0:00:00]} 2. d4 {[%emt 0:00:00]} d5 {[%emt 0:00:00]} 3. Nd2 {[%emt 0:00:00]} dxe4 {[%emt 0:00:01]} 4. Nxe4 {[%emt 0:00:00]} Bf5 {[%emt 0:00:09]} 5. Qf3 {[%emt 0:00:46]} e6 {[%emt 0:04:01]} 6. Ne2 {[%emt 0:00:52]} Nd7 {[%emt 0:01:33]} 7. N2g3 {[%emt 0:00:28]} Bg6 {[%emt 0:00:59]} 8. Bd3 {[%emt 0:07:06]} Ngf6 {[%emt 0:01:39]} 9. O-O {[%emt 0:00:16]} Be7 {[%emt 0:00:40]} 10. Bf4 {[%emt 0:01:32]} O-O {[%emt 0:01:54]} 11. c3 {[%emt 0:04:36]} Nd5 {[%emt 0:03:50]} 12. Bd6 {[%emt 0:06:06]} f5 {[%emt 0:06:50]} 13. Bxe7 {[%emt 0:00:25]} Qxe7 {[%emt 0:00:36]} 14. Nd2 {[%emt 0:01:54]} e5 {[%emt 0:00:18]} 15. Bc4 {[%emt 0:03:10]} e4 {[%emt 0:02:08]} 16. Qe2 {[%emt 0:03:48]} N7b6 {[%emt 0:04:54]} 17. f4 {[%emt 0:05:40]} Qh4 {[%emt 0:06:37]} 18. Qf2 {[%emt 0:09:31]} e3 {[%emt 0:01:40]} 0-1

[Event "Sparkassen Open 2018"]
[Site "Heusenstamm"]
[Date "2018.11.25"]
[Round "7"]
[White "Henrich, David"]
[Black "Paszewski, Mateusz"]
[Result "1/2-1/2"]
[ECO "A11"]
[WhiteElo "2141"]
[BlackElo "2346"]
[Annotator "NA"]
[PlyCount "42"]
[EventDate "2018.11.22"]
[EventType "swiss"]
[EventCountry "GER"]
[SourceTitle "playchess.com"]
[Source "ChessBase"]
[SourceQuality "1"]
[TimeControl "40/5400+30:1800+30"]

1. c4 {[%emt 0:00:00]} c6 {[%emt 0:00:00]} 2. Nf3 {[%emt 0:00:05]} d5 {[%emt 0:00:00]} 3. e3 {[%emt 0:00:04]} Nf6 {[%emt 0:00:00]} 4. Nc3 {[%emt 0:01:14]} e6 {[%emt 0:00:00]} 5. b3 {[%emt 0:00:22]} Bd6 {[%emt 0:00:00]} 6. Bb2 {[%emt 0:00:17]} O-O {[%emt 0:00:00]} 7. Be2 {[%emt 0:01:33]} b6 {[%emt 0:02:29]} 8. d4 {[%emt 0:06:33]} Bb7 {[%emt 0:00:26]} 9. O-O {[%emt 0:01:22]} Nbd7 {[%emt 0:00:08]} 10. Qc2 {[%emt 0:05:23]} Qe7 {[%emt 0:00:36]} 11. cxd5 {[%emt 0:07:35]} exd5 {[%emt 0:00:18]} 12. a3 {[%emt 0:09:21]} Rfe8 {[%emt 0:02:28]} 13. Rfe1 {[%emt 0:10:25]} Rac8 {[%emt 0:02:15]} 14. Bf1 {[%emt 0:04:56]} Ne4 {[%emt 0:02:37]} 15. Nxe4 {[%emt 0:09:13]} dxe4 {[%emt 0:02:47]} 16. Nd2 {[%emt 0:00:48]} c5 {[%emt 0:00:22]} 17. Qd1 {[%emt 0:02:17]} cxd4 {[%emt 0:10:38]} 18. Bxd4 {[%emt 0:00:38]} Ne5 {[%emt 0:01:15]} 19. Nc4 {[%emt 0:06:39]} Bb8 {[%emt 0:39:55]} 20. Nxe5 {[%emt 0:03:59]} Bxe5 {[%emt 0:02:07]} 21. Bxe5 {[%emt 0:03:52]} Qxe5 {[%emt 0:00:09]} 1/2-1/2

[Event "Sparkassen Open 2018"]
[Site "Heusenstamm"]
[Date "2018.11.25"]
[Round "7"]
[White "Engel, Berthold"]
[Black "Alber, Horst"]
[Result "1/2-1/2"]
[ECO "B06"]
[WhiteElo "2129"]
[BlackElo "2287"]
[Annotator "NA"]
[PlyCount "30"]
[EventDate "2018.11.22"]
[EventType "swiss"]
[EventCountry "GER"]
[SourceTitle "playchess.com"]
[Source "ChessBase"]
[SourceQuality "1"]
[TimeControl "40/5400+30:1800+30"]

1. e4 {[%emt 0:00:00]} g6 {[%emt 0:00:00]} 2. c3 {[%emt 0:02:01]} c5 {[%emt 0:03:36]} 3. Nf3 {[%emt 0:00:42]} Bg7 {[%emt 0:00:22]} 4. Qc2 {[%emt 0:01:30]} d6 {[%emt 0:02:07]} 5. Bb5+ {[%emt 0:00:24]} Bd7 {[%emt 0:02:11]} 6. Bxd7+ {[%emt 0:00:05]} Qxd7 {[%emt 0:01:00]} 7. d3 {[%emt 0:02:42]} Nc6 {[%emt 0:00:28]} 8. O-O {[%emt 0:01:49]} Nf6 {[%emt 0:00:36]} 9. Nbd2 {[%emt 0:03:24]} O-O {[%emt 0:02:04]} 10. Re1 {[%emt 0:01:33]} Ne8 {[%emt 0:06:03]} 11. Nb3 {[%emt 0:05:02]} Rc8 {[%emt 0:02:23]} 12. Be3 {[%emt 0:03:07]} b6 {[%emt 0:00:48]} 13. d4 {[%emt 0:02:10]} cxd4 {[%emt 0:00:37]} 14. Nbxd4 {[%emt 0:00:32]} Nxd4 {[%emt 0:12:14]} 15. Bxd4 {[%emt 0:00:52]} Bxd4 1/2-1/2